[Event "Rapid Tournament (RAP)"]
[Site "Biel, Switzerland"]
[Date "2026.07.12"]
[Round "6.40"]
[White "Schwab, Felix"]
[Black "Gast, Michael"]
[Result "1-0"]
[TimeControl "15 + 5"]
[WhiteTitle "-"]
[BlackTitle "-"]
[WhiteFideId "1311450"]
[BlackFideId "1373196"]
[WhiteElo "1945"]
[BlackElo "1682"]

1. e4 {[%clk 00:15:09]} d6 {[%clk 00:15:08]} {[%emt 00:00:05]} 2. d4 {[%clk
00:15:12]} Nf6 {[%clk 00:15:10]} {[%emt 00:00:03]} 3. Nc3 {[%clk 00:15:16]}
{[%emt 00:00:01]} g6 {[%clk 00:15:13]} {[%emt 00:00:04]} 4. Be3 {[%clk
00:15:19]} Bg7 {[%clk 00:14:42]} {[%emt 00:00:37]} 5. Qd2 {[%clk 00:15:15]}
{[%emt 00:00:07]} c5 {[%clk 00:14:24]} {[%emt 00:00:24]} 6. dxc5 {[%clk
00:14:53]} {[%emt 00:00:27]} Ng4 {[%clk 00:12:57]} {[%emt 00:01:32]} 7. cxd6
{[%clk 00:13:40]} {[%emt 00:01:17]} Nxe3 {[%clk 00:12:32]} {[%emt 00:00:30]} 8.
Bb5+ {[%clk 00:12:48]} {[%emt 00:00:58]} Bd7 {[%clk 00:12:11]} {[%emt
00:00:26]} 9. Bxd7+ {[%clk 00:12:36]} {[%emt 00:00:16]} Qxd7 {[%clk 00:12:05]}
{[%emt 00:00:11]} 10. Qxe3 {[%clk 00:12:29]} {[%emt 00:00:12]} Qxd6 {[%clk
00:11:40]} {[%emt 00:00:30]} 11. Nge2 {[%clk 00:12:11]} {[%emt 00:00:24]} O-O
{[%clk 00:10:37]} {[%emt 00:01:07]} 12. O-O {[%clk 00:11:53]} {[%emt 00:00:23]}
Na6 {[%clk 00:10:21]} {[%emt 00:00:22]} 13. Rfd1 {[%clk 00:11:16]} {[%emt
00:00:42]} Qc5 {[%clk 00:09:42]} {[%emt 00:00:44]} 14. Qxc5 {[%clk 00:10:30]}
{[%emt 00:00:50]} Nxc5 {[%clk 00:09:45]} {[%emt 00:00:03]} 15. Rd5 {[%clk
00:10:33]} {[%emt 00:00:02]} Rac8 {[%clk 00:08:57]} {[%emt 00:00:53]} 16. Rad1
{[%clk 00:10:16]} {[%emt 00:00:22]} b6 {[%clk 00:08:49]} {[%emt 00:00:13]} 17.
f4 {[%clk 00:09:43]} {[%emt 00:00:37]} f5 {[%clk 00:07:28]} {[%emt 00:01:28]}
18. e5 {[%clk 00:09:11]} {[%emt 00:00:36]} Ne4 {[%clk 00:07:01]} {[%emt
00:00:32]} 19. Nxe4 {[%clk 00:08:41]} {[%emt 00:00:35]} fxe4 {[%clk 00:07:04]}
{[%emt 00:00:02]} 20. c3 {[%clk 00:08:39]} {[%emt 00:00:07]} Rc5 {[%clk
00:06:14]} {[%emt 00:00:55]} 21. Kf2 {[%clk 00:08:14]} {[%emt 00:00:30]} Bxe5
{[%clk 00:06:00]} {[%emt 00:00:19]} 22. Rxc5 {[%clk 00:07:40]} {[%emt
00:00:39]} bxc5 {[%clk 00:05:57]} {[%emt 00:00:08]} 23. Ke3 {[%clk 00:07:43]}
{[%emt 00:00:02]} Bd6 {[%clk 00:05:35]} {[%emt 00:00:28]} 24. Kxe4 {[%clk
00:07:37]} {[%emt 00:00:10]} a5 {[%clk 00:05:23]} {[%emt 00:00:18]} 25. a4
{[%clk 00:06:10]} {[%emt 00:01:32]} g5 {[%clk 00:04:55]} {[%emt 00:00:32]} 26.
f5 {[%clk 00:05:17]} {[%emt 00:00:58]} h5 {[%clk 00:04:22]} {[%emt 00:00:39]}
27. Ng3 {[%clk 00:04:27]} {[%emt 00:00:55]} h4 {[%clk 00:03:41]} {[%emt
00:00:46]} 28. Nf1 {[%clk 00:04:29]} {[%emt 00:00:02]} Rb8 {[%clk 00:03:08]}
{[%emt 00:00:38]} 29. Rd2 {[%clk 00:04:12]} {[%emt 00:00:22]} Bf4 {[%clk
00:02:42]} {[%emt 00:00:32]} 30. Re2 {[%clk 00:03:58]} {[%emt 00:00:19]} Bc1
{[%clk 00:02:37]} {[%emt 00:00:09]} 31. Kd5 {[%clk 00:03:07]} {[%emt 00:00:56]}
Rxb2 {[%clk 00:02:22]} {[%emt 00:00:21]} 32. Rxb2 {[%clk 00:02:13]} {[%emt
00:00:57]} Bxb2 {[%clk 00:02:25]} {[%emt 00:00:02]} 33. c4 {[%clk 00:02:17]}
{[%emt 00:00:02]} Ba3 {[%clk 00:02:13]} {[%emt 00:00:17]} 34. Ke6 {[%clk
00:02:07]} {[%emt 00:00:14]} Kf8 {[%clk 00:02:01]} {[%emt 00:00:18]} 35. Ne3
{[%clk 00:01:53]} {[%emt 00:00:19]} Bb2 {[%clk 00:01:27]} {[%emt 00:00:39]} 36.
Nd5 {[%clk 00:01:46]} {[%emt 00:00:11]} g4 {[%clk 00:01:04]} {[%emt 00:00:28]}
37. Nxe7 {[%clk 00:01:40]} {[%emt 00:00:12]} h3 {[%clk 00:00:57]} {[%emt
00:00:12]} 38. gxh3 {[%clk 00:01:05]} {[%emt 00:00:40]} gxh3 {[%clk 00:00:58]}
{[%emt 00:00:04]} 39. f6 {[%clk 00:00:56]} {[%emt 00:00:13]} Bd4 {[%clk
00:00:38]} {[%emt 00:00:26]} 40. Ng6+ {[%clk 00:00:53]} {[%emt 00:00:08]} 1-0

[Event "Rapid Tournament (RAP)"]
[Site "Biel, Switzerland"]
[Date "2026.07.12"]
[Round "6.41"]
[White "Ranieri, Pierpaolo"]
[Black "Papageorgiou Martinella, Ilios"]
[Result "1-0"]
[TimeControl "15 + 5"]
[WhiteTitle "-"]
[BlackTitle "-"]
[WhiteFideId "893986"]
[BlackFideId "1368494"]
[WhiteElo "1891"]
[BlackElo "1809"]

1. d4 {[%clk 00:15:08]} Nf6 {[%clk 00:15:07]} {[%emt 00:00:01]} 2. c4 {[%clk
00:15:11]} {[%emt 00:00:03]} e6 {[%clk 00:15:12]} {[%emt 00:00:03]} 3. Nf3
{[%clk 00:15:14]} Bb4+ {[%clk 00:15:15]} {[%emt 00:00:02]} 4. Bd2 {[%clk
00:15:17]} {[%emt 00:00:02]} Qe7 {[%clk 00:15:17]} {[%emt 00:00:04]} 5. a3
{[%clk 00:15:04]} {[%emt 00:00:18]} Bxd2+ {[%clk 00:15:18]} {[%emt 00:00:03]} 6.
Qxd2 {[%clk 00:15:07]} {[%emt 00:00:02]} b6 {[%clk 00:15:15]} {[%emt 00:00:09]}
7. Nc3 {[%clk 00:15:06]} {[%emt 00:00:06]} Bb7 {[%clk 00:15:19]} {[%emt
00:00:01]} 8. g3 {[%clk 00:15:02]} {[%emt 00:00:10]} d5 {[%clk 00:15:10]}
{[%emt 00:00:14]} 9. cxd5 {[%clk 00:14:47]} {[%emt 00:00:19]} exd5 {[%clk
00:15:06]} {[%emt 00:00:09]} 10. Bg2 {[%clk 00:14:49]} {[%emt 00:00:03]} Nbd7
{[%clk 00:15:08]} {[%emt 00:00:03]} 11. O-O {[%clk 00:14:49]} {[%emt 00:00:04]}
O-O {[%clk 00:15:11]} {[%emt 00:00:02]} 12. Rac1 {[%clk 00:14:45]} {[%emt
00:00:10]} c5 {[%clk 00:15:13]} {[%emt 00:00:04]} 13. Rfe1 {[%clk 00:14:37]}
{[%emt 00:00:13]} Ne4 {[%clk 00:14:53]} {[%emt 00:00:23]} 14. Qc2 {[%clk
00:14:21]} {[%emt 00:00:21]} Ndf6 {[%clk 00:14:13]} {[%emt 00:00:47]} 15. Nxe4
{[%clk 00:13:41]} {[%emt 00:00:44]} Nxe4 {[%clk 00:14:07]} {[%emt 00:00:11]} 16.
Nd2 {[%clk 00:13:32]} {[%emt 00:00:14]} cxd4 {[%clk 00:14:00]} {[%emt
00:00:13]} 17. Qd3 {[%clk 00:12:23]} {[%emt 00:01:13]} Qe5 {[%clk 00:12:38]}
{[%emt 00:01:27]} 18. Nf3 {[%clk 00:12:10]} {[%emt 00:00:18]} Qf6 {[%clk
00:12:19]} {[%emt 00:00:24]} 19. Qxd4 {[%clk 00:11:44]} {[%emt 00:00:31]} Qxd4
{[%clk 00:12:15]} {[%emt 00:00:09]} 20. Nxd4 {[%clk 00:11:46]} {[%emt
00:00:03]} Rac8 {[%clk 00:12:19]} {[%emt 00:00:01]} 21. Nb5 {[%clk 00:10:05]}
{[%emt 00:01:46]} f5 {[%clk 00:07:56]} {[%emt 00:04:27]} 22. Nxa7 {[%clk
00:09:24]} {[%emt 00:00:47]} Rc5 {[%clk 00:07:37]} {[%emt 00:00:23]} 23. Rxc5
{[%clk 00:08:56]} {[%emt 00:00:34]} bxc5 {[%clk 00:07:36]} {[%emt 00:00:06]} 24.
Nb5 {[%clk 00:08:53]} {[%emt 00:00:08]} Rf6 {[%clk 00:06:24]} {[%emt 00:01:16]}
25. Rc1 {[%clk 00:08:12]} {[%emt 00:00:46]} Rc6 {[%clk 00:06:22]} {[%emt
00:00:07]} 26. Nc3 {[%clk 00:07:52]} {[%emt 00:00:25]} Rc7 {[%clk 00:04:57]}
{[%emt 00:01:30]} 27. Nb5 {[%clk 00:06:31]} {[%emt 00:01:27]} Rc6 {[%clk
00:04:56]} {[%emt 00:00:06]} 28. a4 {[%clk 00:05:28]} {[%emt 00:01:08]} g6
{[%clk 00:04:10]} {[%emt 00:00:50]} 29. e3 {[%clk 00:04:52]} {[%emt 00:00:42]}
c4 {[%clk 00:03:33]} {[%emt 00:00:42]} 30. Bxe4 {[%clk 00:04:16]} {[%emt
00:00:41]} fxe4 {[%clk 00:03:28]} {[%emt 00:00:09]} 31. Rd1 {[%clk 00:03:52]}
{[%emt 00:00:29]} Rb6 {[%clk 00:03:13]} {[%emt 00:00:20]} 32. Rd2 {[%clk
00:03:43]} {[%emt 00:00:14]} Kf7 {[%clk 00:02:58]} {[%emt 00:00:21]} 33. Nc7
{[%clk 00:03:03]} {[%emt 00:00:45]} h6 {[%clk 00:02:15]} {[%emt 00:00:47]} 34.
a5 {[%clk 00:02:41]} {[%emt 00:00:28]} Rc6 {[%clk 00:02:05]} {[%emt 00:00:15]}
35. Nb5 {[%clk 00:01:49]} {[%emt 00:00:57]} Ra6 {[%clk 00:02:04]} {[%emt
00:00:06]} 36. Rd1 {[%clk 00:01:41]} {[%emt 00:00:13]} Bc6 {[%clk 00:01:46]}
{[%emt 00:00:22]} 37. Nd4 {[%clk 00:01:31]} {[%emt 00:00:16]} Ba4 {[%clk
00:01:26]} {[%emt 00:00:24]} 38. Ra1 {[%clk 00:01:31]} {[%emt 00:00:05]} Rxa5
{[%clk 00:01:13]} {[%emt 00:00:19]} 39. b3 {[%clk 00:01:14]} {[%emt 00:00:23]}
cxb3 {[%clk 00:01:06]} {[%emt 00:00:11]} 40. Nxb3 {[%clk 00:01:16]} {[%emt
00:00:03]} Ra8 {[%clk 00:01:09]} {[%emt 00:00:02]} 41. Nd4 {[%clk 00:00:50]}
{[%emt 00:00:31]} Bd7 {[%clk 00:00:58]} {[%emt 00:00:16]} 42. Rxa8 {[%emt
00:00:12]} 1-0

[Event "Rapid Tournament (RAP)"]
[Site "Biel, Switzerland"]
[Date "2026.07.12"]
[Round "6.42"]
[White "Berger, Vincent"]
[Black "Cousin, Ismael"]
[Result "1-0"]
[TimeControl "15 + 5"]
[WhiteTitle "-"]
[BlackTitle "-"]
[WhiteFideId "1317822"]
[BlackFideId "1364561"]
[WhiteElo "1877"]
[BlackElo "1588"]

1. Nf3 {[%clk 00:14:38]} {[%emt 00:00:26]} b6 {[%clk 00:15:07]} {[%emt
00:00:08]} 2. e3 {[%clk 00:14:35]} {[%emt 00:00:08]} Bb7 {[%clk 00:15:10]}
{[%emt 00:00:02]} 3. b3 {[%clk 00:14:37]} {[%emt 00:00:02]} Nf6 {[%clk
00:15:14]} {[%emt 00:00:01]} 4. Bb2 {[%clk 00:14:41]} {[%emt 00:00:01]} e6
{[%clk 00:14:58]} {[%emt 00:00:21]} 5. Be2 {[%clk 00:14:43]} {[%emt 00:00:03]}
Be7 {[%clk 00:15:01]} {[%emt 00:00:02]} 6. O-O {[%clk 00:14:44]} {[%emt
00:00:03]} O-O {[%clk 00:15:00]} {[%emt 00:00:06]} 7. d3 {[%clk 00:13:46]}
{[%emt 00:01:02]} d6 {[%clk 00:14:58]} {[%emt 00:00:07]} 8. Nbd2 {[%clk
00:13:41]} {[%emt 00:00:11]} Nbd7 {[%clk 00:15:02]} {[%emt 00:00:02]} 9. Re1
{[%clk 00:13:37]} {[%emt 00:00:08]} Re8 {[%clk 00:14:55]} {[%emt 00:00:12]} 10.
c4 {[%clk 00:13:00]} {[%emt 00:00:43]} c5 {[%clk 00:14:42]} {[%emt 00:00:17]}
11. Rc1 {[%clk 00:12:45]} {[%emt 00:00:20]} Rc8 {[%clk 00:14:40]} {[%emt
00:00:06]} 12. Nf1 {[%clk 00:12:14]} {[%emt 00:00:36]} Nf8 {[%clk 00:14:24]}
{[%emt 00:00:21]} 13. Ng3 {[%clk 00:11:50]} {[%emt 00:00:29]} Ng6 {[%clk
00:14:27]} {[%emt 00:00:02]} 14. Qc2 {[%clk 00:11:34]} {[%emt 00:00:22]} d5
{[%clk 00:14:22]} {[%emt 00:00:11]} 15. Qb1 {[%clk 00:11:00]} {[%emt 00:00:38]}
Nd7 {[%clk 00:13:14]} {[%emt 00:01:13]} 16. Qa1 {[%clk 00:09:50]} {[%emt
00:01:16]} Bf6 {[%clk 00:13:16]} {[%emt 00:00:02]} 17. d4 {[%clk 00:09:48]}
{[%emt 00:00:07]} cxd4 {[%clk 00:13:06]} {[%emt 00:00:15]} 18. exd4 {[%clk
00:09:07]} {[%emt 00:00:46]} Be7 {[%clk 00:12:42]} {[%emt 00:00:29]} 19. a3
{[%clk 00:08:23]} {[%emt 00:00:50]} Nf4 {[%clk 00:12:31]} {[%emt 00:00:15]} 20.
Ne5 {[%clk 00:07:52]} {[%emt 00:00:36]} Nxe5 {[%clk 00:11:27]} {[%emt
00:01:09]} 21. dxe5 {[%clk 00:07:51]} {[%emt 00:00:06]} Nxe2+ {[%clk 00:11:28]}
{[%emt 00:00:04]} 22. Nxe2 {[%clk 00:06:40]} {[%emt 00:01:16]} dxc4 {[%clk
00:11:30]} {[%emt 00:00:03]} 23. Red1 {[%clk 00:06:40]} {[%emt 00:00:05]} Qc7
{[%clk 00:11:06]} {[%emt 00:00:28]} 24. Rxc4 {[%clk 00:06:39]} {[%emt
00:00:07]} Qb8 {[%clk 00:11:10]} {[%emt 00:00:02]} 25. Rdc1 {[%clk 00:06:29]}
{[%emt 00:00:14]} Rxc4 {[%clk 00:10:57]} {[%emt 00:00:17]} 26. Rxc4 {[%clk
00:06:26]} {[%emt 00:00:09]} Ba6 {[%clk 00:10:51]} {[%emt 00:00:12]} 27. Re4
{[%clk 00:06:27]} {[%emt 00:00:03]} Qb7 {[%clk 00:10:48]} {[%emt 00:00:08]} 28.
Ng3 {[%clk 00:06:10]} {[%emt 00:00:21]} Rd8 {[%clk 00:10:29]} {[%emt 00:00:26]}
29. Re1 {[%clk 00:06:04]} {[%emt 00:00:10]} Qd5 {[%clk 00:10:27]} {[%emt
00:00:06]} 30. b4 {[%clk 00:05:51]} {[%emt 00:00:18]} Qd2 {[%clk 00:10:07]}
{[%emt 00:00:25]} 31. Qc1 {[%clk 00:05:30]} {[%emt 00:00:27]} Bg5 {[%clk
00:09:42]} {[%emt 00:00:30]} 32. Qxd2 {[%clk 00:05:18]} {[%emt 00:00:17]} Rxd2
{[%clk 00:09:38]} {[%emt 00:00:09]} 33. Bc1 {[%clk 00:05:08]} {[%emt 00:00:15]}
Ra2 {[%clk 00:08:40]} {[%emt 00:01:02]} 34. Bxg5 {[%clk 00:05:08]} {[%emt
00:00:06]} Rxa3 {[%clk 00:08:44]} {[%emt 00:00:01]} 35. Rd1 {[%clk 00:04:49]}
{[%emt 00:00:24]} h6 {[%clk 00:08:46]} {[%emt 00:00:02]} 36. Be7 {[%clk
00:04:50]} {[%emt 00:00:04]} Kh7 {[%clk 00:08:47]} {[%emt 00:00:04]} 37. Ne4
{[%clk 00:04:35]} {[%emt 00:00:21]} Be2 {[%clk 00:08:42]} {[%emt 00:00:10]} 38.
Rc1 {[%clk 00:04:25]} {[%emt 00:00:15]} Bd3 {[%clk 00:08:35]} {[%emt 00:00:12]}
39. Nd6 {[%clk 00:04:21]} {[%emt 00:00:08]} Bg6 {[%clk 00:08:25]} {[%emt
00:00:16]} 40. h3 {[%clk 00:04:12]} {[%emt 00:00:15]} Ra4 {[%clk 00:08:28]}
{[%emt 00:00:01]} 41. Nc8 {[%clk 00:03:56]} {[%emt 00:00:21]} Ra2 {[%clk
00:08:28]} {[%emt 00:00:05]} 42. Rc7 {[%clk 00:03:44]} {[%emt 00:00:17]} a5
{[%clk 00:08:32]} {[%emt 00:00:01]} 43. bxa5 {[%clk 00:03:42]} {[%emt
00:00:06]} bxa5 {[%clk 00:08:36]} {[%emt 00:00:02]} 44. Ra7 {[%clk 00:03:20]}
{[%emt 00:00:27]} Rc2 {[%clk 00:08:24]} {[%emt 00:00:17]} 45. Nb6 {[%clk
00:02:54]} {[%emt 00:00:31]} Rc6 {[%clk 00:08:20]} {[%emt 00:00:09]} 46. Na4
{[%clk 00:02:45]} {[%emt 00:00:12]} Rc1+ {[%clk 00:08:20]} {[%emt 00:00:07]} 47.
Kh2 {[%clk 00:02:48]} {[%emt 00:00:02]} Ra1 {[%clk 00:08:19]} {[%emt 00:00:06]}
48. Nc5 {[%clk 00:02:26]} {[%emt 00:00:27]} Ra2 {[%clk 00:08:20]} {[%emt
00:00:04]} 49. Kg3 {[%clk 00:02:24]} {[%emt 00:00:07]} Ra3+ {[%clk 00:08:22]}
{[%emt 00:00:03]} 50. f3 {[%clk 00:02:12]} {[%emt 00:00:17]} Ra2 {[%clk
00:08:26]} {[%emt 00:00:01]} 51. Bd8 {[%clk 00:01:51]} {[%emt 00:00:26]} h5
{[%clk 00:07:55]} {[%emt 00:00:36]} 52. h4 {[%clk 00:01:51]} {[%emt 00:00:05]}
Rc2 {[%clk 00:07:51]} {[%emt 00:00:08]} 53. Rxa5 {[%clk 00:01:52]} {[%emt
00:00:05]} Rd2 {[%clk 00:07:52]} {[%emt 00:00:04]} 54. Bc7 {[%clk 00:01:53]}
{[%emt 00:00:04]} Rc2 {[%clk 00:07:40]} {[%emt 00:00:17]} 55. Bd6 {[%clk
00:01:56]} {[%emt 00:00:02]} Kh6 {[%clk 00:07:34]} {[%emt 00:00:11]} 56. Ra4
{[%clk 00:01:48]} {[%emt 00:00:14]} Rd2 {[%clk 00:07:27]} {[%emt 00:00:11]} 57.
Ne4 {[%clk 00:01:48]} {[%emt 00:00:05]} Rd3 {[%clk 00:07:05]} {[%emt 00:00:27]}
58. Nf2 {[%clk 00:01:41]} {[%emt 00:00:12]} Rd2 {[%clk 00:07:05]} {[%emt
00:00:06]} 59. Nh3 {[%clk 00:01:35]} {[%emt 00:00:10]} Bc2 {[%clk 00:07:02]}
{[%emt 00:00:08]} 60. Ra2 {[%emt 00:00:38]} 1-0

[Event "Rapid Tournament (RAP)"]
[Site "Biel, Switzerland"]
[Date "2026.07.12"]
[Round "6.43"]
[White "Schaller, Didier"]
[Black "Bonanomi, Silvan"]
[Result "0-1"]
[TimeControl "15 + 5"]
[WhiteTitle "-"]
[BlackTitle "-"]
[WhiteFideId "1314351"]
[BlackFideId "1352644"]
[WhiteElo "1816"]
[BlackElo "1867"]

1. d4 {[%clk 00:15:07]} {[%emt 00:00:03]} Nf6 {[%clk 00:15:08]} {[%emt
00:00:02]} 2. c4 {[%clk 00:15:08]} {[%emt 00:00:05]} e6 {[%clk 00:15:12]} 3.
Nc3 {[%clk 00:15:12]} {[%emt 00:00:02]} Bb4 {[%clk 00:15:15]} {[%emt 00:00:02]}
4. Nf3 {[%clk 00:15:10]} {[%emt 00:00:07]} c5 {[%clk 00:15:15]} {[%emt
00:00:05]} 5. e3 {[%clk 00:14:58]} {[%emt 00:00:17]} O-O {[%clk 00:15:15]}
{[%emt 00:00:05]} 6. Bd3 {[%clk 00:14:04]} {[%emt 00:00:59]} d5 {[%clk
00:15:18]} {[%emt 00:00:02]} 7. Qc2 {[%clk 00:13:28]} {[%emt 00:00:40]} Nc6
{[%clk 00:14:53]} {[%emt 00:00:30]} 8. dxc5 {[%clk 00:10:04]} {[%emt 00:03:30]}
Bxc5 {[%clk 00:14:32]} {[%emt 00:00:27]} 9. cxd5 {[%clk 00:09:39]} {[%emt
00:00:30]} exd5 {[%clk 00:14:34]} {[%emt 00:00:02]} 10. O-O {[%clk 00:09:27]}
{[%emt 00:00:17]} Bg4 {[%clk 00:14:17]} {[%emt 00:00:22]} 11. Be2 {[%clk
00:07:29]} {[%emt 00:02:04]} Rc8 {[%clk 00:14:07]} {[%emt 00:00:14]} 12. a3
{[%clk 00:05:31]} {[%emt 00:02:03]} Re8 {[%clk 00:13:46]} {[%emt 00:00:26]} 13.
Rd1 {[%clk 00:05:14]} {[%emt 00:00:22]} a5 {[%clk 00:11:23]} {[%emt 00:02:28]}
14. Qd2 {[%clk 00:02:35]} {[%emt 00:02:45]} Ne7 {[%clk 00:07:56]} {[%emt
00:03:32]} 15. Nd4 {[%clk 00:01:47]} {[%emt 00:00:52]} Qd7 {[%clk 00:06:59]}
{[%emt 00:01:02]} 16. Bxg4 {[%clk 00:00:41]} {[%emt 00:01:12]} Qxg4 {[%clk
00:07:02]} 17. h3 {[%clk 00:00:45]} {[%emt 00:00:02]} Qg6 {[%clk 00:06:15]}
{[%emt 00:00:52]} 18. Qe2 {[%clk 00:00:46]} {[%emt 00:00:05]} Ne4 {[%clk
00:05:47]} {[%emt 00:00:32]} 19. Nxe4 {[%clk 00:00:40]} {[%emt 00:00:11]} dxe4
{[%clk 00:05:46]} {[%emt 00:00:06]} 20. Bd2 {[%clk 00:00:45]} {[%emt 00:00:01]}
b6 {[%clk 00:05:21]} {[%emt 00:00:30]} 21. Bc3 {[%clk 00:00:37]} {[%emt
00:00:13]} Qg5 {[%clk 00:03:47]} {[%emt 00:01:38]} 22. Rac1 {[%clk 00:00:38]}
{[%emt 00:00:04]} Ng6 {[%clk 00:03:50]} {[%emt 00:00:02]} 23. Qg4 {[%clk
00:00:21]} {[%emt 00:00:22]} Qxg4 {[%clk 00:03:46]} {[%emt 00:00:09]} 24. hxg4
{[%clk 00:00:25]} {[%emt 00:00:01]} Ne5 {[%clk 00:03:42]} {[%emt 00:00:09]} 25.
Nf5 {[%clk 00:00:00]} {[%emt 00:00:29]} Nd3 {[%emt 00:00:15]} 0-1

[Event "Rapid Tournament (RAP)"]
[Site "Biel, Switzerland"]
[Date "2026.07.12"]
[Round "6.44"]
[White "Koehler, Noe"]
[Black "Tan, Jimmy"]
[Result "0-1"]
[TimeControl "15 + 5"]
[WhiteTitle "-"]
[BlackTitle "-"]
[WhiteFideId "1362488"]
[BlackFideId "129057499"]
[WhiteElo "1814"]
[BlackElo "1845"]

1. e4 {[%clk 00:15:08]} c6 {[%clk 00:15:07]} {[%emt 00:00:04]} 2. d4 {[%clk
00:15:12]} {[%emt 00:00:02]} d5 {[%clk 00:15:11]} 3. Nc3 {[%clk 00:15:16]} dxe4
{[%clk 00:15:15]} {[%emt 00:00:01]} 4. Nxe4 {[%clk 00:15:19]} Nf6 {[%clk
00:15:19]} {[%emt 00:00:01]} 5. Nxf6+ {[%clk 00:15:23]} {[%emt 00:00:02]} exf6
{[%clk 00:15:22]} {[%emt 00:00:02]} 6. c3 {[%clk 00:15:26]} {[%emt 00:00:01]}
Bd6 {[%clk 00:15:26]} {[%emt 00:00:01]} 7. Bd3 {[%clk 00:15:30]} O-O {[%clk
00:15:29]} {[%emt 00:00:02]} 8. Qc2 {[%clk 00:15:35]} Re8+ {[%clk 00:15:33]}
{[%emt 00:00:02]} 9. Ne2 {[%clk 00:15:36]} {[%emt 00:00:03]} h6 {[%clk
00:15:37]} {[%emt 00:00:01]} 10. Be3 {[%clk 00:15:27]} {[%emt 00:00:15]} Nd7
{[%clk 00:15:34]} {[%emt 00:00:08]} 11. O-O {[%clk 00:15:20]} {[%emt 00:00:11]}
Nf8 {[%clk 00:15:32]} {[%emt 00:00:08]} 12. Rfe1 {[%clk 00:15:16]} {[%emt
00:00:10]} Qc7 {[%clk 00:14:35]} {[%emt 00:01:01]} 13. Ng3 {[%clk 00:14:20]}
{[%emt 00:01:00]} Be6 {[%clk 00:13:44]} {[%emt 00:00:56]} 14. c4 {[%clk
00:13:30]} {[%emt 00:00:55]} Rad8 {[%clk 00:12:25]} {[%emt 00:01:24]} 15. Rad1
{[%clk 00:12:16]} {[%emt 00:01:19]} Bg4 {[%clk 00:11:40]} {[%emt 00:00:50]} 16.
Rc1 {[%clk 00:11:44]} {[%emt 00:00:37]} Bf4 {[%clk 00:09:01]} {[%emt 00:02:45]}
17. Qd2 {[%clk 00:08:46]} {[%emt 00:03:03]} Bxe3 {[%clk 00:08:42]} {[%emt
00:00:23]} 18. Rxe3 {[%clk 00:08:49]} {[%emt 00:00:02]} Rxe3 {[%clk 00:06:32]}
{[%emt 00:02:16]} 19. Qxe3 {[%clk 00:08:52]} {[%emt 00:00:02]} Qd6 {[%clk
00:05:59]} {[%emt 00:00:38]} 20. d5 {[%clk 00:05:27]} {[%emt 00:03:31]} cxd5
{[%clk 00:05:43]} {[%emt 00:00:21]} 21. cxd5 {[%clk 00:05:30]} Qxd5 {[%clk
00:05:05]} {[%emt 00:00:43]} 22. Bc4 {[%clk 00:04:47]} {[%emt 00:00:48]} Qd2
{[%clk 00:04:24]} {[%emt 00:00:46]} 23. Qxd2 {[%clk 00:01:50]} {[%emt
00:03:02]} Rxd2 {[%clk 00:04:27]} {[%emt 00:00:02]} 24. h3 {[%clk 00:01:32]}
{[%emt 00:00:23]} Be6 {[%clk 00:04:17]} {[%emt 00:00:15]} 25. Nf1 {[%clk
00:00:36]} {[%emt 00:01:01]} Rxb2 {[%clk 00:04:12]} {[%emt 00:00:10]} 26. Bd3
{[%clk 00:00:12]} {[%emt 00:00:29]} Rxa2 {[%clk 00:03:37]} {[%emt 00:00:40]} 27.
Rc7 {[%clk 00:00:14]} {[%emt 00:00:03]} Rb2 {[%clk 00:03:23]} {[%emt 00:00:19]}
28. Ne3 {[%clk 00:00:09]} {[%emt 00:00:10]} g6 {[%clk 00:03:02]} {[%emt
00:00:26]} 29. Nc4 {[%clk 00:00:07]} {[%emt 00:00:07]} Rb3 {[%clk 00:02:22]}
{[%emt 00:00:44]} 30. Bf1 {[%clk 00:00:08]} {[%emt 00:00:05]} Rb1 {[%clk
00:02:15]} {[%emt 00:00:12]} 31. Nd6 {[%clk 00:00:13]} a5 {[%clk 00:02:07]}
{[%emt 00:00:13]} 32. Nxb7 {[%clk 00:00:13]} {[%emt 00:00:05]} a4 {[%clk
00:01:55]} {[%emt 00:00:17]} 33. Nc5 {[%clk 00:00:15]} {[%emt 00:00:03]} Bc4
{[%clk 00:01:39]} {[%emt 00:00:21]} 34. Nxa4 {[%clk 00:00:06]} {[%emt
00:00:15]} Rxf1+ {[%clk 00:01:27]} {[%emt 00:00:16]} 35. Kh2 {[%clk 00:00:10]}
Be6 {[%clk 00:01:22]} {[%emt 00:00:10]} 36. Kg3 {[%clk 00:00:13]} {[%emt
00:00:03]} Kg7 {[%clk 00:00:55]} {[%emt 00:00:32]} 37. Nb6 {[%clk 00:00:14]}
{[%emt 00:00:04]} Rb1 {[%clk 00:00:49]} {[%emt 00:00:11]} 38. Na4 {[%clk
00:00:09]} {[%emt 00:00:10]} Nd7 {[%clk 00:00:45]} {[%emt 00:00:09]} 39. Rc3
{[%clk 00:00:07]} {[%emt 00:00:07]} Rb3 {[%clk 00:00:40]} {[%emt 00:00:09]} 0-1